[Event "European Rapid Championship 2021"]
[Site "Katowice"]
[Date "2021.12.18"]
[Round "3.15"]
[White "Froewis, Annika"]
[Black "Janik, Igor"]
[Result "0-1"]
[ECO "B03"]
[WhiteElo "2079"]
[BlackElo "2462"]
[Annotator "ChessBase"]
[PlyCount "88"]
[EventDate "2021.12.18"]
[EventType "swiss"]
[EventCountry "POL"]
[SourceTitle "playchess.com"]
[Source "ChessBase"]
[SourceQuality "1"]
[TimeControl "900+10"]

1. e4 {[%emt 0:00:02]} Nf6 {[%emt 0:00:13]} 2. e5 {[%emt 0:00:07]} Nd5 {
[%emt 0:00:01]} 3. c4 {[%emt 0:00:01]} Nb6 {[%emt 0:00:01]} 4. d4 {[%emt 0:00:
01]} d6 {[%emt 0:00:00]} 5. exd6 {[%emt 0:00:01]} cxd6 {[%emt 0:00:01]} 6. Nc3
{[%emt 0:00:06]} g6 {[%emt 0:00:02]} 7. h4 {[%emt 0:00:01]} h5 {[%emt 0:00:26]}
8. Be3 {[%emt 0:00:10]} Bg7 {[%emt 0:00:02]} 9. Rc1 {[%emt 0:01:38]} Nc6 {
[%emt 0:00:03]} 10. b3 {[%emt 0:00:08]} O-O {[%emt 0:00:40]} 11. Nf3 {[%emt 0:
00:35]} Bg4 {[%emt 0:00:02]} 12. Be2 {[%emt 0:00:11]} d5 {[%emt 0:00:00]} 13.
c5 Nc8 14. a3 {[%emt 0:02:02]} e6 {[%emt 0:00:02]} 15. b4 {[%emt 0:00:34]} a6 {
[%emt 0:00:01]} 16. Kf1 {[%emt 0:00:48]} N8e7 {[%emt 0:00:05]} 17. Ng5 {
[%emt 0:01:22]} Bxe2+ {[%emt 0:00:05]} 18. Nxe2 {[%emt 0:00:02]} Nf5 {[%emt 0:
00:05]} 19. Rc2 {[%emt 0:02:26]} e5 {[%emt 0:00:23]} 20. Nf3 {[%emt 0:00:53]}
e4 {[%emt 0:00:14]} 21. Ng5 {[%emt 0:00:24]} Qf6 {[%emt 0:00:30]} 22. Kg1 {
[%emt 0:00:58]} Rad8 {[%emt 0:00:23]} 23. Rd2 {[%emt 0:00:17]} Nxe3 {[%emt 0:
01:29]} 24. fxe3 {[%emt 0:00:04]} Bh6 {[%emt 0:00:01]} 25. Nf4 {[%emt 0:01:07]}
Bxg5 {[%emt 0:00:02]} 26. hxg5 {[%emt 0:00:01]} Qxg5 {[%emt 0:00:05]} 27. Rf2 {
[%emt 0:01:29]} Ne7 {[%emt 0:00:18]} 28. Qe2 {[%emt 0:00:41]} Kg7 {[%emt 0:00:
34]} 29. Nh3 {[%emt 0:01:03]} Qg4 {[%emt 0:00:21]} 30. Qxg4 {[%emt 0:00:02]}
hxg4 {[%emt 0:00:01]} 31. Ng5 {[%emt 0:00:02]} Nf5 {[%emt 0:00:08]} 32. Rf4 {
[%emt 0:00:33]} Rh8 {[%emt 0:00:05]} 33. Rxh8 {[%emt 0:01:10]} Rxh8 {[%emt 0:
00:01]} 34. Rxg4 {[%emt 0:00:48]} Nxe3 {[%emt 0:00:03]} 35. Rf4 {[%emt 0:00:16]
} f5 {[%emt 0:00:01]} 36. Rf2 {[%emt 0:00:32]} Kf6 {[%emt 0:00:15]} 37. Nh3 {
[%emt 0:00:03]} g5 {[%emt 0:00:01]} 38. a4 {[%emt 0:00:05]} f4 {[%emt 0:00:11]}
39. Nxf4 {[%emt 0:00:36]} gxf4 {[%emt 0:00:02]} 40. Rxf4+ {[%emt 0:00:01]} Ke6
{[%emt 0:00:01]} 41. b5 {[%emt 0:00:08]} axb5 {[%emt 0:00:04]} 42. axb5 {
[%emt 0:00:02]} Nf5 {[%emt 0:00:01]} 43. g4 {[%emt 0:00:10]} Nxd4 {[%emt 0:00:
02]} 44. b6 {[%emt 0:00:13]} Ne2+ {[%emt 0:00:01]} 0-1

[Event "European Rapid Championship 2021"]
[Site "Katowice"]
[Date "2021.12.18"]
[Round "3.16"]
[White "Gumularz, Szymon"]
[Black "Adamczewski, Maciej"]
[Result "1-0"]
[ECO "C01"]
[WhiteElo "2452"]
[BlackElo "2081"]
[Annotator "ChessBase"]
[PlyCount "87"]
[EventDate "2021.12.18"]
[EventType "swiss"]
[EventCountry "POL"]
[SourceTitle "playchess.com"]
[Source "ChessBase"]
[SourceQuality "1"]
[TimeControl "900+10"]

1. e4 {[%emt 0:00:02]} e6 {[%emt 0:00:00]} 2. d4 {[%emt 0:00:03]} d5 {[%emt 0:
00:01]} 3. exd5 {[%emt 0:00:01]} exd5 {[%emt 0:00:01]} 4. Nf3 {[%emt 0:00:01]}
Nc6 {[%emt 0:00:03]} 5. Nc3 {[%emt 0:00:01]} Bg4 {[%emt 0:00:03]} 6. Bb5 {
[%emt 0:00:06]} Bb4 {[%emt 0:00:05]} 7. h3 {[%emt 0:00:10]} Bh5 {[%emt 0:00:29]
} 8. g4 {[%emt 0:00:48]} Bg6 {[%emt 0:00:01]} 9. Ne5 {[%emt 0:00:04]} Nge7 {
[%emt 0:00:01]} 10. h4 {[%emt 0:00:13]} f6 {[%emt 0:00:02]} 11. Nxg6 {[%emt 0:
00:05]} hxg6 {[%emt 0:00:14]} 12. Qd3 {[%emt 0:00:12]} Qd7 {[%emt 0:00:29]} 13.
f3 {[%emt 0:00:03]} a6 {[%emt 0:00:08]} 14. Ba4 {[%emt 0:00:14]} Bd6 {[%emt 0:
02:01]} 15. Ne2 {[%emt 0:00:20]} O-O-O {[%emt 0:01:30]} 16. Bd2 {[%emt 0:00:05]
} g5 {[%emt 0:00:23]} 17. h5 {[%emt 0:00:04]} g6 {[%emt 0:00:01]} 18. O-O-O {
[%emt 0:00:32]} gxh5 {[%emt 0:00:11]} 19. gxh5 {[%emt 0:00:04]} Rh6 {[%emt 0:
01:05]} 20. f4 {[%emt 0:01:24]} Rdh8 21. Bxc6 Nxc6 {[%emt 0:01:03]} 22. fxg5 {
[%emt 0:00:12]} fxg5 {[%emt 0:00:01]} 23. Qf3 {[%emt 0:00:04]} Be7 {[%emt 0:00:
56]} 24. Rdg1 {[%emt 0:00:13]} Rf8 {[%emt 0:03:14]} 25. Qg2 {[%emt 0:01:51]}
Rf5 {[%emt 0:00:33]} 26. c3 {[%emt 0:00:02]} Na5 {[%emt 0:00:30]} 27. Ng3 {
[%emt 0:03:07]} Rf7 {[%emt 0:01:20]} 28. Rf1 {[%emt 0:00:20]} Rxf1+ {[%emt 0:
00:21]} 29. Rxf1 {[%emt 0:01:01]} Nc4 {[%emt 0:00:10]} 30. Nf5 {[%emt 0:00:15]}
Nxd2 {[%emt 0:01:03]} 31. Kxd2 {[%emt 0:01:04]} Re6 {[%emt 0:01:28]} 32. h6 {
[%emt 0:00:29]} Bf6 {[%emt 0:00:33]} 33. Ne3 {[%emt 0:00:17]} c6 {[%emt 0:01:
20]} 34. Ng4 {[%emt 0:00:17]} Bd8 {[%emt 0:00:27]} 35. Ne5 {[%emt 0:00:11]} Qh7
{[%emt 0:00:09]} 36. Rf8 {[%emt 0:01:46]} Rf6 {[%emt 0:00:45]} 37. Rxd8+ {
[%emt 0:03:33]} Kxd8 {[%emt 0:00:02]} 38. Qxg5 {[%emt 0:00:01]} Qf5 {[%emt 0:
00:26]} 39. Qxf5 {[%emt 0:00:17]} Rxf5 {[%emt 0:00:00]} 40. h7 {[%emt 0:00:00]}
Rh5 {[%emt 0:00:20]} 41. h8=Q+ {[%emt 0:00:04]} Rxh8 {[%emt 0:00:01]} 42. Nf7+
{[%emt 0:00:01]} Ke7 {[%emt 0:00:02]} 43. Nxh8 {[%emt 0:00:01]} Kf6 {[%emt 0:
00:01]} 44. Ke3 {[%emt 0:00:01]} 1-0

[Event "European Rapid Championship 2021"]
[Site "Katowice"]
[Date "2021.12.18"]
[Round "3.16"]
[White "Kiolbasa, Damian"]
[Black "Janaszak, Dawid"]
[Result "0-1"]
[ECO "A57"]
[WhiteElo "1893"]
[BlackElo "2328"]
[Annotator "NA"]
[PlyCount "90"]
[EventDate "2021.12.18"]
[EventType "swiss"]
[EventCountry "POL"]
[SourceTitle "playchess.com"]
[Source "ChessBase"]
[SourceQuality "1"]
[TimeControl "900+10"]

1. d4 {[%emt 0:00:01]} Nf6 {[%emt 0:00:16]} 2. c4 {[%emt 0:00:05]} c5 {[%emt 0:
00:03]} 3. d5 {[%emt 0:00:04]} b5 {[%emt 0:00:01]} 4. Qc2 {[%emt 0:00:02]} b4 {
[%emt 0:00:12]} 5. b3 {[%emt 0:01:17]} g6 {[%emt 0:00:15]} 6. Bb2 {[%emt 0:00:
01]} Bg7 {[%emt 0:00:01]} 7. h4 {[%emt 0:00:36]} d6 {[%emt 0:00:11]} 8. Nd2 {
[%emt 0:00:27]} a5 {[%emt 0:01:45]} 9. h5 {[%emt 0:01:55]} a4 {[%emt 0:02:52]}
10. h6 {[%emt 0:01:49]} Bf8 {[%emt 0:00:01]} 11. a3 {[%emt 0:00:58]} axb3 {
[%emt 0:01:22]} 12. Qxb3 {[%emt 0:00:07]} bxa3 {[%emt 0:01:18]} 13. Rxa3 {
[%emt 0:00:01]} Rxa3 {[%emt 0:00:05]} 14. Qxa3 {[%emt 0:00:01]} Qb6 {[%emt 0:
00:48]} 15. e4 {[%emt 0:04:37]} Rg8 {[%emt 0:00:23]} 16. f3 {[%emt 0:01:55]} g5
{[%emt 0:00:02]} 17. e5 {[%emt 0:01:15]} dxe5 {[%emt 0:00:02]} 18. Bxe5 {
[%emt 0:00:02]} Nbd7 {[%emt 0:00:35]} 19. Bc3 {[%emt 0:00:11]} Rg6 {[%emt 0:00:
46]} 20. Bd3 {[%emt 0:00:25]} Rxh6 {[%emt 0:00:03]} 21. Rxh6 {[%emt 0:00:03]}
Bxh6 {[%emt 0:00:02]} 22. Bf5 {[%emt 0:00:01]} Qa6 {[%emt 0:02:44]} 23. Qb2 {
[%emt 0:00:31]} Bf8 {[%emt 0:00:25]} 24. Ne2 {[%emt 0:00:18]} h5 {[%emt 0:00:
11]} 25. Nc1 {[%emt 0:01:46]} g4 {[%emt 0:00:14]} 26. Nd3 {[%emt 0:00:01]} Bh6
{[%emt 0:00:16]} 27. f4 {[%emt 0:00:02]} h4 {[%emt 0:02:28]} 28. Bxf6 {[%emt 0:
00:44]} exf6 {[%emt 0:01:13]} 29. Bxd7+ {[%emt 0:00:14]} Bxd7 {[%emt 0:00:01]}
30. Ne4 {[%emt 0:00:01]} Bg7 {[%emt 0:00:52]} 31. Qb8+ {[%emt 0:00:02]} Bc8 {
[%emt 0:00:15]} 32. Nd6+ {[%emt 0:00:06]} Kd8 {[%emt 0:00:03]} 33. Nb5 {
[%emt 0:00:43]} Qa5+ {[%emt 0:00:14]} 34. Ke2 {[%emt 0:00:04]} f5 {[%emt 0:00:
19]} 35. Qd6+ {[%emt 0:00:08]} Bd7 {[%emt 0:00:01]} 36. Qxc5 {[%emt 0:00:12]}
h3 {[%emt 0:00:31]} 37. gxh3 {[%emt 0:00:15]} gxh3 {[%emt 0:00:02]} 38. Ne5 {
[%emt 0:00:06]} Qa2+ {[%emt 0:00:15]} 39. Ke3 {[%emt 0:00:09]} Bxe5 {[%emt 0:
00:18]} 40. fxe5 {[%emt 0:00:13]} Qb3+ {[%emt 0:00:01]} 41. Kf2 {[%emt 0:00:04]
} Qc2+ {[%emt 0:00:02]} 42. Kg3 {[%emt 0:00:06]} Qg2+ {[%emt 0:00:01]} 43. Kf4
{[%emt 0:00:07]} Qg4+ {[%emt 0:00:01]} 44. Ke3 {[%emt 0:00:01]} Qg1+ {[%emt 0:
00:01]} 45. Kf4 {[%emt 0:00:01]} Qxc5 {[%emt 0:00:01]} 0-1

[Event "European Rapid Championship 2021"]
[Site "Katowice"]
[Date "2021.12.18"]
[Round "3.17"]
[White "Rudecki, Bartosz"]
[Black "Golubovskis, Maksims"]
[Result "1-0"]
[ECO "B50"]
[WhiteElo "1820"]
[BlackElo "2210"]
[Annotator "ChessBase"]
[PlyCount "167"]
[EventDate "2021.12.18"]
[EventType "swiss"]
[EventCountry "POL"]
[SourceTitle "playchess.com"]
[Source "ChessBase"]
[SourceQuality "1"]
[TimeControl "900+10"]

1. e4 {[%emt 0:00:02]} c5 {[%emt 0:00:06]} 2. Nf3 {[%emt 0:00:02]} d6 {[%emt 0:
00:06]} 3. d4 {[%emt 0:00:02]} Nf6 {[%emt 0:00:08]} 4. Nc3 {[%emt 0:00:19]}
cxd4 {[%emt 0:00:06]} 5. Qxd4 {[%emt 0:00:31]} Nc6 {[%emt 0:00:01]} 6. Bb5 {
[%emt 0:00:06]} Bd7 {[%emt 0:00:01]} 7. Bxc6 {[%emt 0:00:04]} Bxc6 {[%emt 0:00:
01]} 8. Bg5 {[%emt 0:00:12]} e6 {[%emt 0:00:01]} 9. O-O-O {[%emt 0:00:11]} Be7
{[%emt 0:00:13]} 10. Rhe1 {[%emt 0:00:05]} Qc7 {[%emt 0:01:12]} 11. Kb1 {
[%emt 0:00:13]} O-O {[%emt 0:00:13]} 12. Qd2 {[%emt 0:00:30]} b5 {[%emt 0:00:
59]} 13. Bxf6 {[%emt 0:02:35]} Bxf6 {[%emt 0:05:07]} 14. Qxd6 {[%emt 0:00:10]}
Qb7 {[%emt 0:00:01]} 15. Nd4 {[%emt 0:01:31]} Rac8 {[%emt 0:00:02]} 16. Nxc6 {
[%emt 0:01:58]} Rxc6 {[%emt 0:00:03]} 17. Qb4 {[%emt 0:02:02]} Bxc3 {[%emt 0:
03:13]} 18. bxc3 {[%emt 0:00:06]} Rc4 {[%emt 0:00:46]} 19. Qa5 {[%emt 0:01:42]}
Ra4 {[%emt 0:02:44]} 20. Qd8 {[%emt 0:00:01]} Qa6 {[%emt 0:00:01]} 21. Rd6 {
[%emt 0:00:20]} Qb7 {[%emt 0:01:10]} 22. Qd7 {[%emt 0:00:37]} Qb8 {[%emt 0:00:
20]} 23. Re3 {[%emt 0:00:19]} h6 {[%emt 0:01:03]} 24. e5 {[%emt 0:00:31]} Rc4 {
[%emt 0:00:44]} 25. Rd4 {[%emt 0:00:44]} Rc5 {[%emt 0:00:01]} 26. Qd6 {[%emt 0:
00:38]} Qc8 {[%emt 0:00:11]} 27. Kb2 {[%emt 0:01:09]} a5 {[%emt 0:00:18]} 28.
a3 {[%emt 0:00:01]} Rc6 {[%emt 0:00:40]} 29. Qd7 {[%emt 0:00:04]} Qa8 {[%emt 0:
00:00]} 30. Qe7 {[%emt 0:00:18]} Re8 {[%emt 0:00:07]} 31. Qh4 {[%emt 0:00:09]}
Qc8 {[%emt 0:00:25]} 32. Rg3 {[%emt 0:00:12]} Kh8 {[%emt 0:00:14]} 33. Rdg4 {
[%emt 0:00:10]} Qd8 {[%emt 0:00:10]} 34. Qxd8 {[%emt 0:00:09]} Rxd8 {[%emt 0:
00:00]} 35. Rxg7 {[%emt 0:00:05]} Rc5 {[%emt 0:00:05]} 36. Rxf7 {[%emt 0:00:40]
} Rxe5 {[%emt 0:00:01]} 37. Rb7 {[%emt 0:00:11]} Rf8 {[%emt 0:00:20]} 38. Rd3 {
[%emt 0:00:10]} Rg5 {[%emt 0:00:08]} 39. g3 {[%emt 0:01:29]} Rxf2 {[%emt 0:00:
13]} 40. Rd8+ {[%emt 0:00:01]} Rg8 {[%emt 0:00:01]} 41. Rdd7 {[%emt 0:00:00]}
Rg5 {[%emt 0:00:32]} 42. Rh7+ {[%emt 0:00:05]} Kg8 {[%emt 0:00:00]} 43. Rxh6 {
[%emt 0:00:01]} Re5 {[%emt 0:00:09]} 44. Rb8+ {[%emt 0:00:14]} Kg7 {[%emt 0:00:
08]} 45. Rhh8 {[%emt 0:00:02]} Rd2 {[%emt 0:00:15]} 46. Rhd8 {[%emt 0:00:21]}
Rxh2 {[%emt 0:00:10]} 47. Rd7+ {[%emt 0:00:33]} Kg6 {[%emt 0:00:05]} 48. Rg8+ {
[%emt 0:00:05]} Kf5 {[%emt 0:00:11]} 49. Rd4 {[%emt 0:00:11]} Ree2 {[%emt 0:00:
20]} 50. Rf4+ {[%emt 0:00:02]} Ke5 {[%emt 0:00:01]} 51. Rg5+ {[%emt 0:00:10]}
Kd6 {[%emt 0:00:01]} 52. Rxb5 {[%emt 0:00:06]} Rxc2+ {[%emt 0:00:12]} 53. Kb3 {
[%emt 0:00:03]} Rb2+ {[%emt 0:00:14]} 54. Ka4 {[%emt 0:00:02]} Rbc2 {[%emt 0:
00:04]} 55. Rb6+ {[%emt 0:00:17]} Ke5 {[%emt 0:00:01]} 56. Rb5+ {[%emt 0:00:05]
} Kd6 {[%emt 0:00:00]} 57. Rb6+ {[%emt 0:00:53]} Kd5 {[%emt 0:00:01]} 58. c4+ {
[%emt 0:00:10]} Ke5 {[%emt 0:00:50]} 59. Kxa5 {[%emt 0:00:01]} Rc3 {[%emt 0:00:
04]} 60. Rb5+ Kd6 61. c5+ {[%emt 0:00:29]} Kc6 {[%emt 0:00:20]} 62. a4 {
[%emt 0:00:31]} Rxg3 {[%emt 0:00:10]} 63. Rd4 {[%emt 0:00:03]} e5 {[%emt 0:00:
15]} 64. Rd6+ Kc7 65. Re6 {[%emt 0:00:06]} Rg4 {[%emt 0:00:26]} 66. Rxe5 {
[%emt 0:00:19]} Rhh4 {[%emt 0:00:06]} 67. Re7+ {[%emt 0:00:02]} Kd8 {[%emt 0:
00:07]} 68. Rf7 {[%emt 0:00:06]} Rxa4+ {[%emt 0:00:03]} 69. Kb6 {[%emt 0:00:01]
} Rhb4 {[%emt 0:00:29]} 70. Rxb4 {[%emt 0:00:43]} Rxb4+ {[%emt 0:00:00]} 71.
Kc6 {[%emt 0:00:01]} Ke8 {[%emt 0:00:16]} 72. Rh7 {[%emt 0:00:03]} Kd8 {
[%emt 0:00:13]} 73. Rh8+ {[%emt 0:00:03]} Ke7 {[%emt 0:00:01]} 74. Kc7 {
[%emt 0:00:00]} Rg4 {[%emt 0:00:13]} 75. Rd8 {[%emt 0:00:22]} Rc4 {[%emt 0:00:
13]} 76. Rd7+ {[%emt 0:00:01]} Ke6 {[%emt 0:00:12]} 77. c6 {[%emt 0:00:02]} Rc1
{[%emt 0:00:04]} 78. Rd2 {[%emt 0:00:02]} Ke5 {[%emt 0:00:07]} 79. Kb7 {
[%emt 0:00:05]} Rb1+ {[%emt 0:00:04]} 80. Kc8 {[%emt 0:00:01]} Ke6 {[%emt 0:00:
14]} 81. c7 {[%emt 0:00:22]} Rf1 {[%emt 0:00:02]} 82. Rb2 {[%emt 0:00:34]} Rc1
{[%emt 0:00:26]} 83. Kb8 {[%emt 0:00:05]} Kd7 {[%emt 0:00:13]} 84. Rd2+ {
[%emt 0:00:02]} 1-0

[Event "European Rapid Championship 2021"]
[Site "Katowice"]
[Date "2021.12.18"]
[Round "3.18"]
[White "Mirzoev, Emil"]
[Black "Kowalczyk, Rafal"]
[Result "1-0"]
[ECO "A05"]
[WhiteElo "2418"]
[BlackElo "2235"]
[Annotator "NA"]
[PlyCount "75"]
[EventDate "2021.12.18"]
[EventType "swiss"]
[EventCountry "POL"]
[SourceTitle "playchess.com"]
[Source "ChessBase"]
[SourceQuality "1"]
[TimeControl "900+10"]

1. Nf3 {[%emt 0:00:03]} Nf6 {[%emt 0:00:03]} 2. c4 {[%emt 0:00:02]} e6 {
[%emt 0:00:04]} 3. g3 {[%emt 0:00:07]} d5 {[%emt 0:00:02]} 4. b3 {[%emt 0:00:
36]} d4 {[%emt 0:00:03]} 5. Bg2 {[%emt 0:00:12]} c5 {[%emt 0:00:03]} 6. b4 {
[%emt 0:00:45]} cxb4 {[%emt 0:04:35]} 7. a3 {[%emt 0:00:02]} Nc6 {[%emt 0:00:
52]} 8. O-O {[%emt 0:00:09]} bxa3 {[%emt 0:01:14]} 9. d3 {[%emt 0:01:00]} Be7 {
[%emt 0:04:29]} 10. Bxa3 {[%emt 0:00:06]} O-O {[%emt 0:00:34]} 11. Qa4 {
[%emt 0:00:56]} e5 {[%emt 0:00:22]} 12. Nbd2 {[%emt 0:00:18]} Nd7 {[%emt 0:01:
00]} 13. Rfb1 {[%emt 0:00:52]} Bxa3 {[%emt 0:01:33]} 14. Qxa3 {[%emt 0:00:14]}
f5 {[%emt 0:00:11]} 15. Ne1 {[%emt 0:00:48]} Nf6 {[%emt 0:00:22]} 16. Nc2 {
[%emt 0:00:24]} Qe8 {[%emt 0:00:21]} 17. Qc5 {[%emt 0:03:00]} Rf7 {[%emt 0:00:
35]} 18. Nb4 {[%emt 0:00:29]} Nxb4 {[%emt 0:00:55]} 19. Rxb4 {[%emt 0:00:18]}
b6 {[%emt 0:00:17]} 20. Qb5 {[%emt 0:00:55]} Bd7 {[%emt 0:00:22]} 21. Qa6 {
[%emt 0:00:05]} e4 {[%emt 0:00:31]} 22. Nb3 {[%emt 0:00:37]} e3 {[%emt 0:00:09]
} 23. f4 {[%emt 0:00:23]} Rd8 {[%emt 0:00:02]} 24. Qxa7 {[%emt 0:00:23]} Bc6 {
[%emt 0:00:13]} 25. Qxb6 {[%emt 0:00:01]} Bxg2 {[%emt 0:00:02]} 26. Kxg2 {
[%emt 0:00:01]} Rfd7 {[%emt 0:00:08]} 27. Qc6 {[%emt 0:00:41]} Qh5 {[%emt 0:00:
16]} 28. Qf3 {[%emt 0:00:03]} Qe8 {[%emt 0:00:12]} 29. Ra5 {[%emt 0:00:05]} g6
{[%emt 0:00:18]} 30. c5 {[%emt 0:00:08]} Nd5 {[%emt 0:00:04]} 31. Rxd4 {
[%emt 0:00:03]} Nc3 {[%emt 0:00:13]} 32. Rxd7 {[%emt 0:00:05]} Qxd7 {[%emt 0:
00:03]} 33. c6 {[%emt 0:00:13]} Qc7 {[%emt 0:00:20]} 34. Re5 {[%emt 0:00:17]}
Qb6 {[%emt 0:00:09]} 35. Nc5 {[%emt 0:00:14]} Qb1 {[%emt 0:00:11]} 36. Qxe3 {
[%emt 0:00:47]} Nd5 {[%emt 0:00:11]} 37. Rxd5 {[%emt 0:00:37]} Rxd5 {[%emt 0:
00:02]} 38. Qe6+ {[%emt 0:00:08]} 1-0

[Event "European Rapid Championship 2021"]
[Site "Katowice"]
[Date "2021.12.18"]
[Round "3.18"]
[White "Kucypera, Malgorzata"]
[Black "Paszewski, Mateusz"]
[Result "0-1"]
[ECO "B15"]
[WhiteElo "1793"]
[BlackElo "2202"]
[Annotator "NA"]
[PlyCount "40"]
[EventDate "2021.12.18"]
[EventType "swiss"]
[EventCountry "POL"]
[SourceTitle "playchess.com"]
[Source "ChessBase"]
[SourceQuality "1"]
[TimeControl "900+10"]

1. e4 {[%emt 0:00:01]} c6 {[%emt 0:00:03]} 2. d4 {[%emt 0:00:02]} d5 {[%emt 0:
00:01]} 3. Nd2 {[%emt 0:00:01]} dxe4 {[%emt 0:00:02]} 4. Nxe4 {[%emt 0:00:01]}
Nf6 {[%emt 0:00:01]} 5. Nxf6+ {[%emt 0:00:05]} exf6 {[%emt 0:00:01]} 6. Nf3 {
[%emt 0:00:13]} Bd6 {[%emt 0:00:01]} 7. Bd3 {[%emt 0:00:07]} O-O {[%emt 0:00:
02]} 8. O-O {[%emt 0:00:14]} Bg4 {[%emt 0:00:01]} 9. h3 {[%emt 0:00:09]} Bh5 {
[%emt 0:00:01]} 10. Bd2 {[%emt 0:00:31]} Re8 {[%emt 0:00:09]} 11. c4 {[%emt 0:
00:32]} Nd7 {[%emt 0:00:02]} 12. Bc3 {[%emt 0:00:03]} Nf8 {[%emt 0:00:02]} 13.
Be2 {[%emt 0:00:17]} Bc7 {[%emt 0:00:01]} 14. Qb3 {[%emt 0:00:21]} Rxe2 {
[%emt 0:00:05]} 15. Nd2 {[%emt 0:01:19]} Qd6 {[%emt 0:00:10]} 16. g3 {[%emt 0:
00:20]} b6 {[%emt 0:00:05]} 17. Rac1 {[%emt 0:04:49]} Rae8 {[%emt 0:00:03]} 18.
c5 {[%emt 0:00:48]} Qd7 {[%emt 0:00:02]} 19. Kg2 {[%emt 0:00:25]} bxc5 {
[%emt 0:00:09]} 20. dxc5 {[%emt 0:00:16]} R8e3 {[%emt 0:00:22]} 0-1

[Event "European Rapid Championship 2021"]
[Site "Katowice"]
[Date "2021.12.18"]
[Round "3.19"]
[White "Kos, Pawel"]
[Black "Nytra, Ondrej"]
[Result "0-1"]
[ECO "A06"]
[WhiteElo "2199"]
[BlackElo "1798"]
[Annotator "NA"]
[PlyCount "64"]
[EventDate "2021.12.18"]
[EventType "swiss"]
[EventCountry "POL"]
[SourceTitle "playchess.com"]
[Source "ChessBase"]
[SourceQuality "1"]
[TimeControl "900+10"]

1. Nf3 {[%emt 0:00:01]} d5 {[%emt 0:00:02]} 2. d4 {[%emt 0:00:04]} c6 {[%emt 0:
00:03]} 3. Bf4 {[%emt 0:00:07]} Nf6 {[%emt 0:00:05]} 4. e3 {[%emt 0:00:10]} Qb6
{[%emt 0:00:23]} 5. Qc1 {[%emt 0:00:08]} g6 {[%emt 0:00:12]} 6. Bd3 {[%emt 0:
00:11]} Bg7 {[%emt 0:00:04]} 7. Nbd2 {[%emt 0:00:09]} O-O {[%emt 0:00:20]} 8.
h4 {[%emt 0:00:02]} h5 {[%emt 0:00:14]} 9. c3 {[%emt 0:00:14]} Nbd7 {[%emt 0:
00:11]} 10. Qc2 {[%emt 0:00:14]} Ng4 {[%emt 0:01:05]} 11. Ng5 {[%emt 0:00:35]}
c5 {[%emt 0:00:26]} 12. f3 {[%emt 0:01:10]} Nh6 {[%emt 0:00:01]} 13. g4 {
[%emt 0:00:56]} e5 {[%emt 0:01:14]} 14. dxe5 {[%emt 0:08:30]} Nxe5 {[%emt 0:00:
04]} 15. Bxe5 {[%emt 0:00:51]} Bxe5 {[%emt 0:00:07]} 16. O-O-O {[%emt 0:00:02]}
c4 {[%emt 0:00:24]} 17. Be2 {[%emt 0:00:04]} Qxe3 {[%emt 0:01:03]} 18. Rhe1 {
[%emt 0:00:27]} Bg3 {[%emt 0:00:10]} 19. Rg1 {[%emt 0:00:32]} Bxh4 {[%emt 0:00:
27]} 20. gxh5 {[%emt 0:00:25]} Bf5 {[%emt 0:00:38]} 21. Nge4 {[%emt 0:00:17]}
Qxe2 {[%emt 0:00:23]} 22. hxg6 {[%emt 0:00:25]} fxg6 {[%emt 0:00:07]} 23. Rxg6+
{[%emt 0:00:51]} Bxg6 {[%emt 0:00:21]} 24. Rg1 {[%emt 0:00:01]} Kh7 {[%emt 0:
00:10]} 25. Qa4 {[%emt 0:01:12]} dxe4 {[%emt 0:00:08]} 26. Qd7+ {[%emt 0:00:15]
} Rf7 {[%emt 0:00:04]} 27. Qe6 {[%emt 0:00:11]} Rg8 {[%emt 0:00:14]} 28. f4 {
[%emt 0:01:10]} e3 {[%emt 0:00:11]} 29. Ne4 {[%emt 0:00:03]} Bxe4 {[%emt 0:00:
35]} 30. Qxe4+ {[%emt 0:00:07]} Nf5 {[%emt 0:00:06]} 31. Rh1 {[%emt 0:00:10]}
Qd2+ {[%emt 0:00:10]} 32. Kb1 {[%emt 0:00:02]} Qd3+ {[%emt 0:00:01]} 0-1

[Event "European Rapid Championship 2021"]
[Site "Katowice"]
[Date "2021.12.18"]
[Round "3.19"]
[White "Brzezinski, Mateusz"]
[Black "Brodowski, Piotr"]
[Result "0-1"]
[ECO "A41"]
[WhiteElo "2187"]
[BlackElo "2414"]
[Annotator "ChessBase"]
[PlyCount "100"]
[EventDate "2021.12.18"]
[EventType "swiss"]
[EventCountry "POL"]
[SourceTitle "playchess.com"]
[Source "ChessBase"]
[SourceQuality "1"]
[TimeControl "900+10"]

1. d4 {[%emt 0:00:03]} d6 {[%emt 0:00:13]} 2. Nf3 {[%emt 0:00:25]} g6 {[%emt 0:
00:05]} 3. Bf4 {[%emt 0:00:14]} Bg7 {[%emt 0:00:02]} 4. e3 {[%emt 0:00:02]} Nd7
{[%emt 0:00:15]} 5. c3 {[%emt 0:00:23]} e5 {[%emt 0:00:20]} 6. Bg3 {[%emt 0:00:
03]} Qe7 {[%emt 0:00:06]} 7. Be2 {[%emt 0:00:11]} h5 {[%emt 0:03:14]} 8. h3 {
[%emt 0:00:06]} h4 {[%emt 0:00:37]} 9. Bh2 {[%emt 0:00:02]} e4 {[%emt 0:00:30]}
10. Nfd2 {[%emt 0:00:05]} Ngf6 {[%emt 0:00:01]} 11. Na3 {[%emt 0:00:11]} Nf8 {
[%emt 0:00:11]} 12. Qa4+ {[%emt 0:00:22]} Bd7 {[%emt 0:01:02]} 13. Qb3 {
[%emt 0:00:02]} Bc6 {[%emt 0:00:15]} 14. Bb5 {[%emt 0:02:48]} Qd7 {[%emt 0:00:
04]} 15. c4 {[%emt 0:00:02]} Ne6 {[%emt 0:01:56]} 16. d5 {[%emt 0:05:31]} Nc5 {
[%emt 0:00:02]} 17. dxc6 {[%emt 0:00:02]} bxc6 {[%emt 0:00:01]} 18. Qc2 {
[%emt 0:00:01]} cxb5 {[%emt 0:00:04]} 19. Nxb5 {[%emt 0:00:50]} O-O {[%emt 0:
01:17]} 20. O-O {[%emt 0:00:12]} Rfe8 {[%emt 0:00:03]} 21. Rab1 {[%emt 0:00:36]
} a6 {[%emt 0:00:35]} 22. Nc3 {[%emt 0:00:21]} a5 {[%emt 0:00:01]} 23. b3 {
[%emt 0:00:01]} Qe6 {[%emt 0:02:24]} 24. a3 {[%emt 0:00:11]} Qf5 {[%emt 0:02:
05]} 25. b4 {[%emt 0:00:35]} axb4 {[%emt 0:00:14]} 26. axb4 {[%emt 0:00:00]}
Ncd7 {[%emt 0:00:02]} 27. Nb5 {[%emt 0:00:21]} Rac8 {[%emt 0:00:16]} 28. Bxd6 {
[%emt 0:00:36]} cxd6 {[%emt 0:00:02]} 29. Nxd6 {[%emt 0:00:02]} Qe5 {[%emt 0:
00:20]} 30. Nxc8 {[%emt 0:00:56]} Rxc8 {[%emt 0:00:02]} 31. Rfc1 {[%emt 0:00:
02]} Bf8 {[%emt 0:00:05]} 32. c5 {[%emt 0:00:05]} g5 {[%emt 0:00:45]} 33. c6 {
[%emt 0:00:34]} Nb6 {[%emt 0:00:04]} 34. Qb2 {[%emt 0:00:29]} Qf5 {[%emt 0:00:
03]} 35. Qd4 {[%emt 0:00:03]} Nbd5 {[%emt 0:00:50]} 36. Ra1 {[%emt 0:01:05]}
Bxb4 {[%emt 0:00:58]} 37. Rc4 {[%emt 0:00:02]} Bd6 {[%emt 0:00:34]} 38. Ra5 {
[%emt 0:00:15]} Be5 {[%emt 0:00:05]} 39. Qc5 {[%emt 0:02:04]} g4 {[%emt 0:00:
58]} 40. hxg4 {[%emt 0:00:03]} Qxg4 {[%emt 0:00:08]} 41. f3 {[%emt 0:00:30]}
Qg6 {[%emt 0:00:23]} 42. Nxe4 {[%emt 0:00:21]} h3 {[%emt 0:00:05]} 43. g4 {
[%emt 0:00:06]} Nxg4 {[%emt 0:00:13]} 44. fxg4 {[%emt 0:00:36]} Qxg4+ {[%emt 0:
00:02]} 45. Kf1 {[%emt 0:00:07]} Qf3+ {[%emt 0:00:25]} 46. Nf2 {[%emt 0:00:14]}
h2 {[%emt 0:00:18]} 47. Rg4+ {[%emt 0:00:09]} Qxg4 {[%emt 0:00:06]} 48. Nxg4 {
[%emt 0:00:01]} h1=Q+ {[%emt 0:00:03]} 49. Ke2 {[%emt 0:00:02]} Nc3+ {[%emt 0:
00:11]} 50. Kd3 {[%emt 0:00:06]} Qe4+ {[%emt 0:00:00]} 0-1